[Event "Titled Tuesday Blitz November 14 Early 2023"]
[White "Gholami Orimi, Mahdi"]
[Black "Idani, Pouya"]
[WhiteFideId "12558486"]
[BlackFideId "12510130"]
[WhiteElo "2968"]
[BlackElo "2832"]
[Result "1/2-1/2"]
[Round "7"]
[TimeControl "180+1"]
[Date "2023.11.14"]
[WhiteClock "0:00:05"]
[BlackClock "0:00:21"]
[Board "16"]

1. d4 {[%clk 0:03:00]}  Nf6 {[%clk 0:02:59]} 2. c4 {[%clk 0:03:01]}  e6 {[%clk 0:03:00]} 3. Nc3 {[%clk 0:03:01]}  Bb4 {[%clk 0:03:00]} 4. Qc2 {[%clk 0:03:02]}  d6 {[%clk 0:03:00]} 5. e4 {[%clk 0:03:01]}  c5 {[%clk 0:02:59]} 6. d5 {[%clk 0:03:01]}  exd5 {[%clk 0:02:59]} 7. exd5 {[%clk 0:03:01]}  O-O {[%clk 0:02:59]} 8. Bd3 {[%clk 0:03:02]}  Bxc3+ {[%clk 0:02:53]} 9. Qxc3 {[%clk 0:02:59]}  b5 {[%clk 0:02:42]} 10. b3 {[%clk 0:02:58]}  Re8+ {[%clk 0:02:39]} 11. Ne2 {[%clk 0:02:57]}  bxc4 {[%clk 0:02:40]} 12. bxc4 {[%clk 0:02:57]}  Nbd7 {[%clk 0:02:31]} 13. Bf4 {[%clk 0:02:44]}  Ne5 {[%clk 0:01:56]} 14. Bxe5 {[%clk 0:02:44]}  Rxe5 {[%clk 0:01:56]} 15. O-O {[%clk 0:02:44]}  Bd7 {[%clk 0:01:55]} 16. Ng3 {[%clk 0:02:39]}  Qc7 {[%clk 0:01:50]} 17. Rfe1 {[%clk 0:02:26]}  Rxe1+ {[%clk 0:01:49]} 18. Rxe1 {[%clk 0:02:26]}  Re8 {[%clk 0:01:50]} 19. Rxe8+ {[%clk 0:02:20]}  Nxe8 {[%clk 0:01:48]} 20. h3 {[%clk 0:02:18]}  Qb6 {[%clk 0:01:36]} 21. Qe1 {[%clk 0:02:15]}  Qd8 {[%clk 0:01:31]} 22. Qc3 {[%clk 0:02:12]}  Nf6 {[%clk 0:01:27]} 23. Qc1 {[%clk 0:02:06]}  Qe7 {[%clk 0:01:21]} 24. Qc3 {[%clk 0:02:00]}  g6 {[%clk 0:01:15]} 25. Nf1 {[%clk 0:01:51]}  Bc8 {[%clk 0:01:13]} 26. Ne3 {[%clk 0:01:50]}  h5 {[%clk 0:01:11]} 27. Qa5 {[%clk 0:01:48]}  Kg7 {[%clk 0:01:09]} 28. Qc3 {[%clk 0:01:44]}  Qe5 {[%clk 0:01:01]} 29. Qa3 {[%clk 0:01:30]}  Qe7 {[%clk 0:01:00]} 30. Qa4 {[%clk 0:01:24]}  Qc7 {[%clk 0:00:55]} 31. Qb3 {[%clk 0:01:21]}  Kg8 {[%clk 0:00:52]} 32. Qb2 {[%clk 0:01:20]}  Nd7 {[%clk 0:00:51]} 33. f4 {[%clk 0:01:15]}  Qb6 {[%clk 0:00:49]} 34. Qe2 {[%clk 0:01:14]}  Qd8 {[%clk 0:00:47]} 35. Nd1 {[%clk 0:01:10]}  Kg7 {[%clk 0:00:43]} 36. Nf2 {[%clk 0:01:10]}  Qf6 {[%clk 0:00:42]} 37. Qe8 {[%clk 0:00:55]}  Nb6 {[%clk 0:00:37]} 38. Qe3 {[%clk 0:00:51]}  Qa1+ {[%clk 0:00:34]} 39. Kh2 {[%clk 0:00:47]}  Qd4 {[%clk 0:00:33]} 40. Qxd4+ {[%clk 0:00:27]}  cxd4 {[%clk 0:00:34]} 41. g4 {[%clk 0:00:28]}  hxg4 {[%clk 0:00:34]} 42. hxg4 {[%clk 0:00:29]}  f5 {[%clk 0:00:35]} 43. gxf5 {[%clk 0:00:25]}  Bxf5 {[%clk 0:00:33]} 44. Kg3 {[%clk 0:00:15]}  Bxd3 {[%clk 0:00:29]} 45. Nxd3 {[%clk 0:00:16]}  Nxc4 {[%clk 0:00:30]} 46. Nb4 {[%clk 0:00:05]}  Kf6 {[%clk 0:00:27]} 47. Kf3 {[%clk 0:00:03]}  Kf5 {[%clk 0:00:23]} 48. Nc6 {[%clk 0:00:04]}  a5 {[%clk 0:00:18]} 49. Nxd4+ {[%clk 0:00:04]}  Kf6 {[%clk 0:00:18]} 50. Nb5 {[%clk 0:00:04]}  a4 {[%clk 0:00:18]} 51. Ke4 {[%clk 0:00:04]}  Ke7 {[%clk 0:00:18]} 52. Kd4 {[%clk 0:00:04]}  Nb6 {[%clk 0:00:18]} 53. Nc3 {[%clk 0:00:05]}  Kf6 {[%clk 0:00:18]} 54. Ke4 {[%clk 0:00:05]}  Ke7 {[%clk 0:00:19]} 55. Kf3 {[%clk 0:00:04]}  Kf6 {[%clk 0:00:19]} 56. Kg4 {[%clk 0:00:05]}  a3 {[%clk 0:00:19]} 57. Nb5 {[%clk 0:00:04]}  Nxd5 {[%clk 0:00:20]} 58. Nxa3 {[%clk 0:00:05]}  Nc3 {[%clk 0:00:20]} 59. Nc4 {[%clk 0:00:05]}  d5 {[%clk 0:00:20]} 60. Nb6 {[%clk 0:00:05]}  d4 {[%clk 0:00:20]} 61. a3 {[%clk 0:00:04]}  d3 {[%clk 0:00:20]} 62. Nc4 {[%clk 0:00:04]}  Ke6 {[%clk 0:00:18]} 63. Kf3 {[%clk 0:00:03]}  Kd5 {[%clk 0:00:19]} 64. Nd2 {[%clk 0:00:03]}  Kd4 {[%clk 0:00:19]} 65. Nb3+ {[%clk 0:00:03]}  Kc4 {[%clk 0:00:19]} 66. Nd2+ {[%clk 0:00:04]}  Kd4 {[%clk 0:00:20]} 67. Nb3+ {[%clk 0:00:04]}  Kc4 {[%clk 0:00:21]} 68. Nd2+ {[%clk 0:00:05]}  Kd4 {[%clk 0:00:21]} 1/2-1/2


[Site "https://www.chess.com"]

[Event "Titled Tuesday Blitz November 14 Early 2023"]
[White "Kopylov, Alexander A."]
[Black "Matlakov, Maxim"]
[WhiteFideId "4164857"]
[BlackFideId "4168003"]
[WhiteElo "2802"]
[BlackElo "2951"]
[Result "1/2-1/2"]
[Round "7"]
[TimeControl "180+1"]
[Date "2023.11.14"]
[WhiteClock "0:00:21"]
[BlackClock "0:00:05"]
[Board "20"]

1. d4 {[%clk 0:02:59]}  Nf6 {[%clk 0:02:59]} 2. Nf3 {[%clk 0:03:00]}  d6 {[%clk 0:02:59]} 3. g3 {[%clk 0:03:01]}  g6 {[%clk 0:02:57]} 4. Bg2 {[%clk 0:03:01]}  Bg7 {[%clk 0:02:58]} 5. O-O {[%clk 0:03:02]}  O-O {[%clk 0:02:58]} 6. a4 {[%clk 0:03:03]}  a5 {[%clk 0:02:52]} 7. Nc3 {[%clk 0:03:03]}  c6 {[%clk 0:02:51]} 8. e4 {[%clk 0:03:03]}  Qc7 {[%clk 0:02:50]} 9. h3 {[%clk 0:03:02]}  e5 {[%clk 0:02:49]} 10. Be3 {[%clk 0:03:02]}  Re8 {[%clk 0:02:45]} 11. Re1 {[%clk 0:03:02]}  Nbd7 {[%clk 0:02:44]} 12. Qd2 {[%clk 0:03:03]}  exd4 {[%clk 0:02:39]} 13. Bxd4 {[%clk 0:03:00]}  b6 {[%clk 0:02:31]} 14. Rad1 {[%clk 0:02:59]}  Bb7 {[%clk 0:02:31]} 15. Bxf6 {[%clk 0:02:56]}  Bxf6 {[%clk 0:02:20]} 16. Qxd6 {[%clk 0:02:57]}  Qxd6 {[%clk 0:02:20]} 17. Rxd6 {[%clk 0:02:58]}  Bxc3 {[%clk 0:02:20]} 18. bxc3 {[%clk 0:02:55]}  Nc5 {[%clk 0:02:19]} 19. Nd4 {[%clk 0:02:34]}  Nxa4 {[%clk 0:01:22]} 20. e5 {[%clk 0:02:34]}  Nxc3 {[%clk 0:01:13]} 21. Rd7 {[%clk 0:02:23]}  Rad8 {[%clk 0:01:11]} 22. e6 {[%clk 0:02:09]}  fxe6 {[%clk 0:01:05]} 23. Rxb7 {[%clk 0:02:07]}  Rxd4 {[%clk 0:01:05]} 24. Bxc6 {[%clk 0:02:08]}  Rf8 {[%clk 0:01:01]} 25. Rxe6 {[%clk 0:02:08]}  Rd1+ {[%clk 0:00:46]} 26. Kg2 {[%clk 0:02:04]}  Rd2 {[%clk 0:00:46]} 27. Ree7 {[%clk 0:01:46]}  Rdxf2+ {[%clk 0:00:45]} 28. Kg1 {[%clk 0:01:45]}  Rf1+ {[%clk 0:00:43]} 29. Kh2 {[%clk 0:01:45]}  R1f2+ {[%clk 0:00:38]} 30. Bg2 {[%clk 0:01:34]}  R2f7 {[%clk 0:00:37]} 31. Rxf7 {[%clk 0:01:33]}  Rxf7 {[%clk 0:00:38]} 32. Rxb6 {[%clk 0:01:33]}  Rc7 {[%clk 0:00:37]} 33. Ra6 {[%clk 0:01:32]}  Rc5 {[%clk 0:00:35]} 34. Ra7 {[%clk 0:01:29]}  h6 {[%clk 0:00:32]} 35. h4 {[%clk 0:01:27]}  g5 {[%clk 0:00:32]} 36. Kh3 {[%clk 0:01:25]}  gxh4 {[%clk 0:00:29]} 37. Kxh4 {[%clk 0:01:25]}  a4 {[%clk 0:00:30]} 38. Bh3 {[%clk 0:01:18]}  Rc6 {[%clk 0:00:22]} 39. Bd7 {[%clk 0:01:14]}  Rd6 {[%clk 0:00:21]} 40. Kh5 {[%clk 0:01:09]}  Ne4 {[%clk 0:00:16]} 41. Bxa4 {[%clk 0:01:06]}  Nxg3+ {[%clk 0:00:16]} 42. Kg4 {[%clk 0:01:06]}  Ne4 {[%clk 0:00:16]} 43. Bb3+ {[%clk 0:01:04]}  Kh8 {[%clk 0:00:16]} 44. Rc7 {[%clk 0:01:02]}  Rf6 {[%clk 0:00:13]} 45. Bd5 {[%clk 0:00:56]}  Nf2+ {[%clk 0:00:09]} 46. Kg3 {[%clk 0:00:56]}  h5 {[%clk 0:00:09]} 47. c4 {[%clk 0:00:56]}  Nd3 {[%clk 0:00:09]} 48. Kh4 {[%clk 0:00:55]}  Nf4 {[%clk 0:00:06]} 49. Be4 {[%clk 0:00:45]}  Re6 {[%clk 0:00:06]} 50. Bf5 {[%clk 0:00:42]}  Re5 {[%clk 0:00:06]} 51. Bb1 {[%clk 0:00:38]}  Ng2+ {[%clk 0:00:05]} 52. Kg3 {[%clk 0:00:38]}  Rg5+ {[%clk 0:00:05]} 53. Kf3 {[%clk 0:00:33]}  h4 {[%clk 0:00:05]} 54. c5 {[%clk 0:00:32]}  Rg3+ {[%clk 0:00:01]} 55. Ke4 {[%clk 0:00:31]}  Ne3 {[%clk 0:00:01]} 56. c6 {[%clk 0:00:26]}  h3 {[%clk 0:00:01]} 57. Rh7+ {[%clk 0:00:25]}  Kxh7 {[%clk 0:00:01]} 58. Kf4+ {[%clk 0:00:20]}  Kh6 {[%clk 0:00:01]} 59. Kxg3 {[%clk 0:00:19]}  Nd5 {[%clk 0:00:01]} 60. Kxh3 {[%clk 0:00:19]}  Nc7 {[%clk 0:00:02]} 61. Be4 {[%clk 0:00:19]}  Kg5 {[%clk 0:00:02]} 62. Kg3 {[%clk 0:00:19]}  Kf6 {[%clk 0:00:03]} 63. Kf4 {[%clk 0:00:19]}  Ke6 {[%clk 0:00:03]} 64. Ke3 {[%clk 0:00:20]}  Kd6 {[%clk 0:00:04]} 65. Kd4 {[%clk 0:00:21]}  Ne6+ {[%clk 0:00:04]} 66. Kc4 {[%clk 0:00:21]}  Nd8 {[%clk 0:00:05]} 67. c7 {[%clk 0:00:21]}  Kxc7 {[%clk 0:00:05]} 1/2-1/2


[Site "https://www.chess.com"]

[Event "Titled Tuesday Blitz November 14 Early 2023"]
[White "Nazari, Arad"]
[Black "Galchenko, Matvey"]
[WhiteFideId "12577324"]
[BlackFideId "24175480"]
[WhiteElo "2772"]
[BlackElo "2942"]
[Result "0-1"]
[Round "7"]
[TimeControl "180+1"]
[Date "2023.11.14"]
[WhiteClock "0:00:01"]
[BlackClock "0:00:05"]
[Board "21"]

1. e4 {[%clk 0:02:52]}  e6 {[%clk 0:03:00]} 2. d4 {[%clk 0:02:51]}  d5 {[%clk 0:03:00]} 3. e5 {[%clk 0:02:52]}  c5 {[%clk 0:02:59]} 4. c3 {[%clk 0:02:53]}  Qb6 {[%clk 0:03:00]} 5. Nf3 {[%clk 0:02:52]}  Nc6 {[%clk 0:03:01]} 6. a3 {[%clk 0:02:52]}  Nh6 {[%clk 0:03:01]} 7. b4 {[%clk 0:02:49]}  cxd4 {[%clk 0:03:01]} 8. Bb2 {[%clk 0:02:49]}  Bd7 {[%clk 0:02:41]} 9. Bd3 {[%clk 0:02:33]}  Rc8 {[%clk 0:02:20]} 10. cxd4 {[%clk 0:02:24]}  Na5 {[%clk 0:02:19]} 11. Nbd2 {[%clk 0:02:15]}  Nc4 {[%clk 0:02:15]} 12. Bc1 {[%clk 0:02:11]}  a5 {[%clk 0:02:13]} 13. bxa5 {[%clk 0:02:06]}  Qxa5 {[%clk 0:02:12]} 14. O-O {[%clk 0:02:06]}  Qc3 {[%clk 0:01:51]} 15. Nb3 {[%clk 0:01:44]}  Ba4 {[%clk 0:01:47]} 16. Rb1 {[%clk 0:01:41]}  Nxa3 {[%clk 0:00:52]} 17. Bxa3 {[%clk 0:01:03]}  Bxa3 {[%clk 0:00:53]} 18. Be2 {[%clk 0:00:48]}  O-O {[%clk 0:00:42]} 19. Nfd2 {[%clk 0:00:36]}  Nf5 {[%clk 0:00:42]} 20. Ra1 {[%clk 0:00:32]}  Qb4 {[%clk 0:00:37]} 21. Qb1 {[%clk 0:00:28]}  Nxd4 {[%clk 0:00:23]} 22. Nxd4 {[%clk 0:00:28]}  Qxd2 {[%clk 0:00:24]} 23. Bd3 {[%clk 0:00:18]}  Rc3 {[%clk 0:00:15]} 24. Bxh7+ {[%clk 0:00:13]}  Kh8 {[%clk 0:00:15]} 25. Nf3 {[%clk 0:00:12]}  Qf4 {[%clk 0:00:13]} 26. Bd3 {[%clk 0:00:10]}  Bc6 {[%clk 0:00:10]} 27. Qd1 {[%clk 0:00:09]}  Bc5 {[%clk 0:00:08]} 28. Ne1 {[%clk 0:00:08]}  g6 {[%clk 0:00:07]} 29. Qe2 {[%clk 0:00:05]}  Kg7 {[%clk 0:00:07]} 30. g3 {[%clk 0:00:06]}  Qd4 {[%clk 0:00:07]} 31. Bb5 {[%clk 0:00:04]}  Bxb5 {[%clk 0:00:06]} 32. Qxb5 {[%clk 0:00:05]}  Qxe5 {[%clk 0:00:06]} 33. Qxb7 {[%clk 0:00:03]}  Rc4 {[%clk 0:00:06]} 34. Nd3 {[%clk 0:00:03]}  Qd4 {[%clk 0:00:05]} 35. Nxc5 {[%clk 0:00:03]}  Qxc5 {[%clk 0:00:06]} 36. Rab1 {[%clk 0:00:03]}  Qd4 {[%clk 0:00:06]} 37. Qb2 {[%clk 0:00:03]}  Qxb2 {[%clk 0:00:06]} 38. Rxb2 {[%clk 0:00:04]}  d4 {[%clk 0:00:07]} 39. Rd2 {[%clk 0:00:05]}  e5 {[%clk 0:00:07]} 40. f4 {[%clk 0:00:05]}  e4 {[%clk 0:00:07]} 41. Re1 {[%clk 0:00:05]}  e3 {[%clk 0:00:07]} 42. Rd3 {[%clk 0:00:06]}  Re8 {[%clk 0:00:07]} 43. Kg2 {[%clk 0:00:06]}  Rc2+ {[%clk 0:00:07]} 44. Kg1 {[%clk 0:00:07]}  Rd2 {[%clk 0:00:06]} 45. Rb3 {[%clk 0:00:01]}  d3 {[%clk 0:00:06]} 46. Rc3 {[%clk 0:00:01]}  Kf6 {[%clk 0:00:05]} 47. Kf1 {[%clk 0:00:01]}  Rf2+ {[%clk 0:00:04]} 48. Kg1 {[%clk 0:00:02]}  d2 {[%clk 0:00:05]} 49. Rb1 {[%clk 0:00:01]}  e2 {[%clk 0:00:03]} 50. Rb6+ {[%clk 0:00:01]}  Kg7 {[%clk 0:00:03]} 51. Kxf2 {[%clk 0:00:02]}  e1=Q+ {[%clk 0:00:04]} 52. Kg2 {[%clk 0:00:01]}  d1=Q {[%clk 0:00:05]} 0-1


[Site "https://www.chess.com"]

[Event "Titled Tuesday Blitz November 14 Early 2023"]
[White "Sokolovsky, Yahli"]
[Black "Baskakov, Egor"]
[WhiteFideId "2820242"]
[BlackFideId "24197866"]
[WhiteElo "2765"]
[BlackElo "2910"]
[Result "0-1"]
[Round "7"]
[TimeControl "180+1"]
[Date "2023.11.14"]
[WhiteClock "0:00:00"]
[BlackClock "0:00:22"]
[Board "22"]

1. b3 {[%clk 0:03:00]}  Nf6 {[%clk 0:02:59]} 2. Bb2 {[%clk 0:03:01]}  e6 {[%clk 0:02:58]} 3. e3 {[%clk 0:03:02]}  d5 {[%clk 0:02:58]} 4. d4 {[%clk 0:03:02]}  Be7 {[%clk 0:02:59]} 5. Nf3 {[%clk 0:03:03]}  O-O {[%clk 0:02:59]} 6. Nbd2 {[%clk 0:03:04]}  Ne4 {[%clk 0:02:59]} 7. Nxe4 {[%clk 0:03:00]}  dxe4 {[%clk 0:03:00]} 8. Nd2 {[%clk 0:03:00]}  f5 {[%clk 0:03:01]} 9. c4 {[%clk 0:03:00]}  c5 {[%clk 0:02:59]} 10. d5 {[%clk 0:02:52]}  Bf6 {[%clk 0:02:55]} 11. Qc2 {[%clk 0:02:48]}  Na6 {[%clk 0:02:50]} 12. a3 {[%clk 0:02:18]}  Nc7 {[%clk 0:02:50]} 13. dxe6 {[%clk 0:01:50]}  Bxe6 {[%clk 0:02:43]} 14. O-O-O {[%clk 0:01:49]}  Qe7 {[%clk 0:02:43]} 15. Be2 {[%clk 0:01:42]}  Rfd8 {[%clk 0:02:39]} 16. Nb1 {[%clk 0:01:36]}  Ne8 {[%clk 0:02:17]} 17. Nc3 {[%clk 0:01:32]}  Be5 {[%clk 0:01:51]} 18. g3 {[%clk 0:01:12]}  Qf6 {[%clk 0:01:47]} 19. Na4 {[%clk 0:00:59]}  b6 {[%clk 0:01:45]} 20. Bxe5 {[%clk 0:00:59]}  Qxe5 {[%clk 0:01:46]} 21. Qb2 {[%clk 0:00:56]}  Qc7 {[%clk 0:01:42]} 22. Nc3 {[%clk 0:00:55]}  a6 {[%clk 0:01:25]} 23. Rxd8 {[%clk 0:00:53]}  Rxd8 {[%clk 0:01:24]} 24. Rd1 {[%clk 0:00:54]}  Rxd1+ {[%clk 0:01:18]} 25. Kxd1 {[%clk 0:00:52]}  Nf6 {[%clk 0:01:19]} 26. Qd2 {[%clk 0:00:45]}  Kf8 {[%clk 0:01:17]} 27. Kc2 {[%clk 0:00:34]}  Ke7 {[%clk 0:01:17]} 28. h4 {[%clk 0:00:34]}  Qe5 {[%clk 0:01:13]} 29. Na4 {[%clk 0:00:28]}  Nd7 {[%clk 0:01:10]} 30. Qc3 {[%clk 0:00:26]}  Kd6 {[%clk 0:01:10]} 31. Qxe5+ {[%clk 0:00:22]}  Kxe5 {[%clk 0:01:10]} 32. Kc3 {[%clk 0:00:21]}  g6 {[%clk 0:01:08]} 33. b4 {[%clk 0:00:19]}  Kd6 {[%clk 0:01:08]} 34. Nb2 {[%clk 0:00:12]}  Ne5 {[%clk 0:01:06]} 35. Na4 {[%clk 0:00:10]}  Kc6 {[%clk 0:01:01]} 36. bxc5 {[%clk 0:00:08]}  bxc5 {[%clk 0:01:00]} 37. Nb2 {[%clk 0:00:08]}  Bd7 {[%clk 0:00:58]} 38. Kb3 {[%clk 0:00:07]}  Kb6 {[%clk 0:00:58]} 39. Nd1 {[%clk 0:00:07]}  Bc6 {[%clk 0:00:43]} 40. Nc3 {[%clk 0:00:07]}  h6 {[%clk 0:00:42]} 41. Na2 {[%clk 0:00:05]}  g5 {[%clk 0:00:41]} 42. hxg5 {[%clk 0:00:04]}  hxg5 {[%clk 0:00:42]} 43. Nc3 {[%clk 0:00:04]}  Ka5 {[%clk 0:00:35]} 44. Kb2 {[%clk 0:00:01]}  Ng6 {[%clk 0:00:34]} 45. Bh5 {[%clk 0:00:01]}  Ne5 {[%clk 0:00:34]} 46. Be2 {[%clk 0:00:02]}  Kb6 {[%clk 0:00:31]} 47. Kb3 {[%clk 0:00:03]}  Kc7 {[%clk 0:00:31]} 48. Bh5 {[%clk 0:00:02]}  Nd3 {[%clk 0:00:27]} 49. Nd1 {[%clk 0:00:02]}  Kd6 {[%clk 0:00:26]} 50. Be2 {[%clk 0:00:03]}  Ne5 {[%clk 0:00:26]} 51. Nc3 {[%clk 0:00:03]}  Ng6 {[%clk 0:00:25]} 52. Na4 {[%clk 0:00:02]}  f4 {[%clk 0:00:22]} 53. Bh5 {[%clk 0:00:03]}  fxg3 {[%clk 0:00:21]} 54. fxg3 {[%clk 0:00:00]}  Ne5 {[%clk 0:00:22]} 0-1


[Site "https://www.chess.com"]

[Event "Titled Tuesday Blitz November 14 Early 2023"]
[White "Kovalev, Vladislav"]
[Black "Samunenkov, Ihor"]
[WhiteFideId "13504398"]
[BlackFideId "14187086"]
[WhiteElo "2904"]
[BlackElo "2763"]
[Result "0-1"]
[Round "7"]
[TimeControl "180+1"]
[Date "2023.11.14"]
[WhiteClock "0:00:00"]
[BlackClock "0:00:04"]
[Board "23"]

1. e4 {[%clk 0:02:57]}  e5 {[%clk 0:03:00]} 2. Nf3 {[%clk 0:02:57]}  Nf6 {[%clk 0:03:00]} 3. Nxe5 {[%clk 0:02:51]}  d6 {[%clk 0:03:00]} 4. Nf3 {[%clk 0:02:52]}  Nxe4 {[%clk 0:03:00]} 5. d4 {[%clk 0:02:52]}  d5 {[%clk 0:03:01]} 6. Bd3 {[%clk 0:02:53]}  Bd6 {[%clk 0:03:01]} 7. O-O {[%clk 0:02:53]}  O-O {[%clk 0:03:01]} 8. c4 {[%clk 0:02:53]}  c6 {[%clk 0:03:02]} 9. Nc3 {[%clk 0:02:54]}  Nxc3 {[%clk 0:03:02]} 10. bxc3 {[%clk 0:02:55]}  dxc4 {[%clk 0:03:02]} 11. Bxc4 {[%clk 0:02:55]}  Bf5 {[%clk 0:03:03]} 12. Re1 {[%clk 0:02:44]}  Nd7 {[%clk 0:03:02]} 13. a4 {[%clk 0:02:33]}  Qa5 {[%clk 0:02:55]} 14. Nh4 {[%clk 0:02:18]}  Rae8 {[%clk 0:02:05]} 15. Nxf5 {[%clk 0:01:59]}  Rxe1+ {[%clk 0:02:05]} 16. Qxe1 {[%clk 0:01:59]}  Qxf5 {[%clk 0:02:06]} 17. Bd2 {[%clk 0:01:54]}  Nb6 {[%clk 0:01:53]} 18. Bf1 {[%clk 0:01:41]}  Nd5 {[%clk 0:01:48]} 19. g3 {[%clk 0:01:41]}  b6 {[%clk 0:01:43]} 20. Qe2 {[%clk 0:01:21]}  Qc2 {[%clk 0:01:19]} 21. c4 {[%clk 0:01:17]}  Nf6 {[%clk 0:01:13]} 22. Be3 {[%clk 0:00:54]}  Qxe2 {[%clk 0:01:07]} 23. Bxe2 {[%clk 0:00:54]}  c5 {[%clk 0:00:55]} 24. dxc5 {[%clk 0:00:41]}  Bxc5 {[%clk 0:00:28]} 25. Bxc5 {[%clk 0:00:41]}  bxc5 {[%clk 0:00:29]} 26. Rb1 {[%clk 0:00:42]}  Re8 {[%clk 0:00:28]} 27. Bf3 {[%clk 0:00:42]}  Kf8 {[%clk 0:00:25]} 28. Rb5 {[%clk 0:00:33]}  Re1+ {[%clk 0:00:18]} 29. Kg2 {[%clk 0:00:33]}  Ra1 {[%clk 0:00:18]} 30. Rb8+ {[%clk 0:00:28]}  Ke7 {[%clk 0:00:19]} 31. Rb7+ {[%clk 0:00:29]}  Kd6 {[%clk 0:00:18]} 32. Rxa7 {[%clk 0:00:29]}  Nd7 {[%clk 0:00:17]} 33. a5 {[%clk 0:00:23]}  f5 {[%clk 0:00:17]} 34. Ra8 {[%clk 0:00:08]}  f4 {[%clk 0:00:12]} 35. gxf4 {[%clk 0:00:08]}  Ra3 {[%clk 0:00:11]} 36. a6 {[%clk 0:00:08]}  Nb6 {[%clk 0:00:08]} 37. Rd8+ {[%clk 0:00:06]}  Ke7 {[%clk 0:00:04]} 38. Rg8 {[%clk 0:00:05]}  Kf7 {[%clk 0:00:03]} 39. Rb8 {[%clk 0:00:01]}  Rxa6 {[%clk 0:00:03]} 40. Rb7+ {[%clk 0:00:01]}  Kf6 {[%clk 0:00:03]} 41. Rc7 {[%clk 0:00:01]}  Nxc4 {[%clk 0:00:03]} 42. Rxc5 {[%clk 0:00:02]}  Nd6 {[%clk 0:00:04]} 43. Rc7 {[%clk 0:00:02]}  Rb6 {[%clk 0:00:03]} 44. Rd7 {[%clk 0:00:03]}  h6 {[%clk 0:00:03]} 45. Bd5 {[%clk 0:00:03]}  g5 {[%clk 0:00:02]} 46. fxg5+ {[%clk 0:00:02]}  hxg5 {[%clk 0:00:03]} 47. f3 {[%clk 0:00:02]}  Rb2+ {[%clk 0:00:03]} 48. Kf1 {[%clk 0:00:02]}  Ke5 {[%clk 0:00:03]} 49. Bc6 {[%clk 0:00:02]}  Rxh2 {[%clk 0:00:03]} 50. Kg1 {[%clk 0:00:02]}  Rc2 {[%clk 0:00:02]} 51. Ba8 {[%clk 0:00:02]}  Rb2 {[%clk 0:00:01]} 52. Rd8 {[%clk 0:00:03]}  Nf5 {[%clk 0:00:01]} 53. Be4 {[%clk 0:00:02]}  Nh4 {[%clk 0:00:01]} 54. Rf8 {[%clk 0:00:02]}  g4 {[%clk 0:00:01]} 55. fxg4 {[%clk 0:00:01]}  Kxe4 {[%clk 0:00:01]} 56. g5 {[%clk 0:00:02]}  Nf3+ {[%clk 0:00:02]} 57. Kf1 {[%clk 0:00:02]}  Nxg5 {[%clk 0:00:02]} 58. Ke1 {[%clk 0:00:03]}  Nf3+ {[%clk 0:00:03]} 59. Kd1 {[%clk 0:00:04]}  Rh2 {[%clk 0:00:03]} 60. Kc1 {[%clk 0:00:04]}  Ke3 {[%clk 0:00:03]} 61. Re8+ {[%clk 0:00:04]}  Kd3 {[%clk 0:00:03]} 62. Rd8+ {[%clk 0:00:04]}  Nd4 {[%clk 0:00:03]} 63. Kb1 {[%clk 0:00:05]}  Rg2 {[%clk 0:00:03]} 64. Rd7 {[%clk 0:00:05]}  Rg5 {[%clk 0:00:02]} 65. Rd8 {[%clk 0:00:05]}  Rg6 {[%clk 0:00:02]} 66. Kb2 {[%clk 0:00:05]}  Rb6+ {[%clk 0:00:02]} 67. Kc1 {[%clk 0:00:05]}  Kc3 {[%clk 0:00:02]} 68. Rc8+ {[%clk 0:00:05]}  Nc6 {[%clk 0:00:03]} 69. Kd1 {[%clk 0:00:05]}  Kd3 {[%clk 0:00:03]} 70. Ke1 {[%clk 0:00:05]}  Nd4 {[%clk 0:00:02]} 71. Kf2 {[%clk 0:00:05]}  Rg6 {[%clk 0:00:02]} 72. Re8 {[%clk 0:00:04]}  Rf6+ {[%clk 0:00:03]} 73. Kg2 {[%clk 0:00:05]}  Ne6 {[%clk 0:00:03]} 74. Ra8 {[%clk 0:00:04]}  Ke3 {[%clk 0:00:03]} 75. Ra3+ {[%clk 0:00:04]}  Ke4 {[%clk 0:00:04]} 76. Ra4+ {[%clk 0:00:05]}  Nd4 {[%clk 0:00:04]} 77. Rb4 {[%clk 0:00:05]}  Ke3 {[%clk 0:00:04]} 78. Ra4 {[%clk 0:00:03]}  Rg6+ {[%clk 0:00:05]} 79. Kh3 {[%clk 0:00:02]}  Rg8 {[%clk 0:00:05]} 80. Ra3+ {[%clk 0:00:02]}  Kf4 {[%clk 0:00:05]} 81. Ra4 {[%clk 0:00:02]}  Ke5 {[%clk 0:00:05]} 82. Ra5+ {[%clk 0:00:02]}  Ke4 {[%clk 0:00:05]} 83. Ra4 {[%clk 0:00:03]}  Rg7 {[%clk 0:00:06]} 84. Kh4 {[%clk 0:00:02]}  Ke5 {[%clk 0:00:04]} 85. Kh3 {[%clk 0:00:02]}  Nf5 {[%clk 0:00:02]} 86. Rb4 {[%clk 0:00:02]}  Nd6 {[%clk 0:00:02]} 87. Kh2 {[%clk 0:00:02]}  Ne4 {[%clk 0:00:02]} 88. Rb8 {[%clk 0:00:02]}  Kf4 {[%clk 0:00:02]} 89. Rf8+ {[%clk 0:00:03]}  Ke3 {[%clk 0:00:03]} 90. Ra8 {[%clk 0:00:01]}  Rg6 {[%clk 0:00:02]} 91. Ra3+ {[%clk 0:00:01]}  Ke2 {[%clk 0:00:02]} 92. Ra2+ {[%clk 0:00:01]}  Kf3 {[%clk 0:00:03]} 93. Ra3+ {[%clk 0:00:00]}  Kf4 {[%clk 0:00:04]} 0-1


[Site "https://www.chess.com"]

[Event "Titled Tuesday Blitz November 14 Early 2023"]
[White "Timofeev, Artyom"]
[Black "Vlassov, Nikolai"]
[WhiteFideId "4140419"]
[BlackFideId "4103360"]
[WhiteElo "2839"]
[BlackElo "2617"]
[Result "1-0"]
[Round "7"]
[TimeControl "180+1"]
[Date "2023.11.14"]
[WhiteClock "0:01:37"]
[BlackClock "0:00:47"]
[Board "28"]

1. c4 {[%clk 0:03:00]}  e5 {[%clk 0:02:59]} 2. e3 {[%clk 0:03:00]}  Nf6 {[%clk 0:02:57]} 3. Nc3 {[%clk 0:03:00]}  Nc6 {[%clk 0:02:54]} 4. d3 {[%clk 0:02:57]}  Bb4 {[%clk 0:02:49]} 5. Bd2 {[%clk 0:02:56]}  O-O {[%clk 0:02:49]} 6. Nf3 {[%clk 0:02:55]}  Re8 {[%clk 0:02:48]} 7. Be2 {[%clk 0:02:54]}  a5 {[%clk 0:02:47]} 8. O-O {[%clk 0:02:54]}  h6 {[%clk 0:02:46]} 9. Nd5 {[%clk 0:02:46]}  Bd6 {[%clk 0:02:36]} 10. Bc3 {[%clk 0:02:43]}  Nxd5 {[%clk 0:02:34]} 11. cxd5 {[%clk 0:02:43]}  Ne7 {[%clk 0:02:34]} 12. e4 {[%clk 0:02:40]}  Ng6 {[%clk 0:02:33]} 13. g3 {[%clk 0:02:39]}  c6 {[%clk 0:02:33]} 14. d4 {[%clk 0:02:36]}  Qf6 {[%clk 0:01:46]} 15. dxe5 {[%clk 0:02:27]}  Nxe5 {[%clk 0:01:45]} 16. Nd4 {[%clk 0:02:27]}  cxd5 {[%clk 0:01:33]} 17. f4 {[%clk 0:02:26]}  dxe4 {[%clk 0:01:23]} 18. fxe5 {[%clk 0:02:25]}  Qxe5 {[%clk 0:01:22]} 19. Bc4 {[%clk 0:02:25]}  Rf8 {[%clk 0:01:15]} 20. Nf5 {[%clk 0:02:02]}  Qc5+ {[%clk 0:01:06]} 21. Kh1 {[%clk 0:02:01]}  Bxg3 {[%clk 0:01:05]} 22. Qg4 {[%clk 0:01:57]}  Be5 {[%clk 0:00:59]} 23. Nxh6+ {[%clk 0:01:51]}  Kh7 {[%clk 0:00:58]} 24. Nxf7 {[%clk 0:01:45]}  Bxc3 {[%clk 0:00:55]} 25. Qh4+ {[%clk 0:01:39]}  Kg6 {[%clk 0:00:47]} 26. Rg1+ {[%clk 0:01:37]} 1-0


[Site "https://www.chess.com"]